bitfinex/quotes_BTCUSD_20250624
["timestamp","ask_amount","ask_price","bid_price","bid_amount"]
[1750741405786,0.03287447,105100.0,105090.0,0.31436078]
[1750741407271,0.03287447,105100.0,105090.0,0.32387579]
[1750741415097,0.07287447,105100.0,105090.0,0.32387579]
[1750741415521,0.04,105100.0,105090.0,0.60891747]
[1750741415721,0.04,105100.0,105090.0,0.62621747]
[1750741415926,0.04,105100.0,105090.0,0.60891747]
[1750741416135,0.04,105100.0,105090.0,0.32387579]
[1750741427624,0.0334,105110.0,105100.0,0.19980951]
[1750741427829,0.07336,105110.0,105100.0,0.29531137]
[1750741428363,0.34028766,105110.0,105100.0,0.29531137]
[1750741428945,0.34228766,105110.0,105100.0,0.29531137]
[1750741429139,0.34528766,105110.0,105100.0,0.29531137]
[1750741429873,0.34528766,105110.0,105100.0,0.30482584]
[1750741431834,0.34528766,105110.0,105100.0,0.31434022]
[1750741433032,0.34528766,105110.0,105100.0,0.30482584]
[1750741433236,0.07836,105110.0,105100.0,0.30482584]
[1750741433448,0.34528766,105110.0,105100.0,0.30482584]
[1750741433837,0.34528766,105110.0,105100.0,0.29531137]
[1750741435315,0.34528766,105110.0,105100.0,0.30482584]
[1750741435910,0.34528766,105110.0,105100.0,0.31434022]
[1750741438927,0.34528766,105110.0,105100.0,0.29531137]
[1750741439167,0.07836,105110.0,105100.0,0.29531146]
[1750741439365,0.34528766,105110.0,105100.0,0.29531146]
[1750741440489,0.34528766,105110.0,105100.0,0.1050166]
[1750741440698,0.34528766,105110.0,105100.0,0.11453125]
[1750741441514,0.34528766,105110.0,105100.0,0.3048262]
[1750741441717,0.34528766,105110.0,105100.0,0.31434076]
[1750741442145,0.34528766,105110.0,105100.0,0.3048262]
[1750741442526,0.34528766,105110.0,105100.0,0.31434076]
[1750741442886,0.34528766,105110.0,105100.0,0.1050166]
[1750741443776,0.34528766,105110.0,105100.0,0.11453116]
[1750741444481,0.07836,105110.0,105100.0,0.11453116]
[1750741444726,0.34528766,105110.0,105100.0,0.31434058]
[1750741444889,0.34528766,105110.0,105100.0,0.30482611]
[1750741445624,0.34528766,105110.0,105100.0,0.1050166]
[1750741445834,0.34528766,105110.0,105100.0,0.11453125]
[1750741446909,0.34528766,105110.0,105100.0,0.12404581]
[1750741449392,0.34528766,105110.0,105100.0,0.1050166]
[1750741449618,0.34528766,105110.0,105100.0,0.11453125]
[1750741450234,0.34528766,105110.0,105100.0,0.1050166]
[1750741450376,0.34528766,105110.0,105100.0,0.11453125]
[1750741451157,0.34528766,105110.0,105100.0,0.12404581]
[1750741451361,0.34528766,105110.0,105100.0,0.11453125]
[1750741451690,0.34528766,105110.0,105100.0,0.12404581]
[1750741452100,0.07836,105110.0,105100.0,0.31434076]
[1750741452255,0.04496,105110.0,105100.0,0.32385523]
[1750741452424,0.31188766,105110.0,105100.0,0.32385523]
[1750741452802,0.31188766,105110.0,105100.0,0.33336961]
[1750741454051,0.31188766,105110.0,105100.0,0.32385523]
[1750741454442,0.31188766,105110.0,105100.0,0.33336961]
[1750741457012,0.31188766,105110.0,105100.0,0.32385523]
[1750741457670,0.34448766,105110.0,105100.0,0.32385523]
[1750741458523,0.31188766,105110.0,105100.0,0.33336961]
[1750741458735,0.31188766,105110.0,105100.0,0.33336916]
[1750741458962,0.31188766,105110.0,105100.0,0.32385487]
[1750741460011,0.31188766,105110.0,105100.0,0.31434049]
[1750741460617,0.31188766,105110.0,105100.0,0.32385487]
[1750741461027,0.31188766,105110.0,105100.0,0.29531146]
[1750741461246,0.31188766,105110.0,105100.0,0.31434049]
[1750741462384,0.31188766,105110.0,105100.0,0.33336916]
[1750741462693,0.31188766,105110.0,105100.0,0.32385487]
[1750741463131,0.31188766,105110.0,105100.0,0.33336916]
[1750741463840,0.31188766,105110.0,105100.0,0.32385487]
[1750741464072,0.31188766,105110.0,105100.0,0.30482602]
[1750741464393,0.31188766,105110.0,105100.0,0.31434049]
[1750741467794,0.31188766,105110.0,105100.0,0.32385487]
[1750741468199,0.31188766,105110.0,105100.0,0.31434049]
[1750741469906,0.31188766,105110.0,105100.0,0.31286049]
[1750741470201,0.31188766,105110.0,105100.0,0.32237487]
[1750741470406,0.31188766,105110.0,105100.0,0.30334602]
[1750741470562,0.31188766,105110.0,105100.0,0.09402186]
[1750741470774,0.35501664,105110.0,105100.0,0.09402186]
[1750741474327,0.5267,105100.0,105070.0,0.23416657]
[1750741474541,0.41452,105090.0,105080.0,0.09550186]
[1750741474752,0.56928,105090.0,105080.0,0.09550186]
[1750741475735,0.83920766,105090.0,105080.0,0.10501841]
[1750741476360,0.84120766,105090.0,105080.0,0.10501841]
[1750741476600,0.84120766,105090.0,105080.0,0.09550186]
[1750741486082,0.84120766,105090.0,105080.0,0.10501841]
[1750741486333,0.83887981,105090.0,105080.0,0.09550186]
[1750741486599,0.83887981,105090.0,105080.0,0.10501841]
[1750741487036,0.83879981,105090.0,105080.0,0.10501841]
[1750741487484,0.83879981,105090.0,105080.0,0.09550186]
[1750741487694,0.83879981,105090.0,105080.0,0.10501841]
[1750741488992,0.83879981,105090.0,105080.0,0.29534958]
[1750741489211,0.83879981,105090.0,105080.0,0.30486595]
[1750741490145,0.83879981,105090.0,105080.0,0.30486604]
[1750741490383,0.83879981,105090.0,105080.0,0.31438241]
[1750741490610,0.83879981,105090.0,105080.0,0.30486604]
[1750741491059,0.83879981,105090.0,105080.0,0.29534958]
[1750741491280,0.83879981,105090.0,105080.0,0.30486604]
[1750741491510,0.83879981,105090.0,105080.0,0.31438241]
[1750741492430,0.83879981,105090.0,105080.0,0.30486604]
[1750741493125,0.83879981,105090.0,105080.0,0.19984772]
[1750741493330,0.83879981,105090.0,105080.0,0.20936418]
[1750741494780,0.83879981,105090.0,105080.0,0.21888055]
[1750741495638,0.82392766,105090.0,105080.0,0.21888055]
[1750741496060,0.82392766,105090.0,105080.0,0.19984772]
[1750741496275,0.82392766,105090.0,105080.0,0.20936418]
[1750741498191,0.5396,105090.0,105080.0,0.20936409]
[1750741498406,0.80652766,105090.0,105080.0,0.21888019]
[1750741498624,0.80652766,105090.0,105080.0,0.20936409]
[1750741498838,0.80652766,105090.0,105080.0,0.21888037]
[1750741499316,0.80652766,105090.0,105080.0,0.20936409]
[1750741499733,0.80652766,105090.0,105080.0,0.21888037]
[1750741500596,0.80652766,105090.0,105080.0,0.20936409]
[1750741501086,0.80652766,105090.0,105080.0,0.21888037]
[1750741501288,0.80652766,105090.0,105080.0,0.22839656]
[1750741501693,0.80652766,105090.0,105080.0,0.21888037]
[1750741502633,0.80652766,105090.0,105080.0,0.20936409]
[1750741502836,0.80652766,105090.0,105080.0,0.21888037]
[1750741503071,0.80652766,105090.0,105080.0,0.20936409]
[1750741503356,0.80652766,105090.0,105080.0,0.21888037]
[1750741503554,0.80652766,105090.0,105080.0,0.22839656]
[1750741504186,0.80652766,105090.0,105080.0,0.21888037]
[1750741505362,0.80652766,105090.0,105080.0,0.22839656]
[1750741505560,0.80652766,105090.0,105080.0,0.21888037]
[1750741506650,0.83992766,105090.0,105080.0,0.20936409]
[1750741507275,0.83992766,105090.0,105080.0,0.21888037]
[1750741507452,0.82342766,105090.0,105080.0,0.21888037]
[1750741507660,0.82342766,105090.0,105080.0,0.22839656]
[1750741507876,0.80652766,105090.0,105080.0,0.22839656]
[1750741508077,0.80652766,105090.0,105080.0,0.21888037]
[1750741508519,0.80652766,105090.0,105080.0,0.20936409]
[1750741508924,0.80652766,105090.0,105080.0,0.21888037]
[1750741509527,0.80652766,105090.0,105080.0,0.20936409]
[1750741510082,0.82312766,105090.0,105080.0,0.20936418]
[1750741510290,0.82312766,105090.0,105080.0,0.21888055]
[1750741510712,0.62852766,105090.0,105080.0,0.21888055]
[1750741510963,0.21604,105090.0,105080.0,0.21888055]
[1750741511189,0.46636766,105090.0,105080.0,0.22839683]
[1750741512239,0.46636766,105090.0,105080.0,0.23791302]
[1750741512447,0.46636766,105090.0,105080.0,0.23791257]
[1750741512654,0.46636766,105090.0,105080.0,0.21888028]
[1750741513252,0.46636766,105090.0,105080.0,0.22839647]
[1750741513441,0.46636766,105090.0,105080.0,0.21888028]
[1750741514480,0.46636766,105090.0,105080.0,0.209364]
[1750741516272,0.46636766,105090.0,105080.0,0.21888019]
[1750741516888,0.46636766,105090.0,105080.0,0.21888028]
[1750741517089,0.27192766,105090.0,105080.0,0.22839647]
[1750741517276,0.46636766,105090.0,105080.0,0.22839647]
[1750741518155,0.46636766,105090.0,105080.0,0.209364]
[1750741518377,0.005,105090.0,105080.0,0.96731414]
[1750741518794,0.005,105090.0,105080.0,0.43345882]
[1750741518994,0.005,105090.0,105080.0,0.70038648]
[1750741523600,0.0448,105090.0,105080.0,0.70038648]
[1750741525334,0.0448,105090.0,105080.0,0.62472563]
[1750741529292,0.0448,105090.0,105080.0,0.35779797]
[1750741529509,0.31172766,105090.0,105080.0,0.35779797]
[1750741530106,0.0448,105090.0,105080.0,0.35779797]
[1750741530449,0.0448,105090.0,105080.0,0.62472563]
[1750741532205,0.0448,105090.0,105080.0,0.35779797]
[1750741532415,0.0448,105090.0,105080.0,0.62472563]
[1750741535327,0.0448,105090.0,105080.0,0.60792563]
[1750741536974,0.0448,105090.0,105080.0,0.34099797]
[1750741537172,0.0448,105090.0,105080.0,0.60792563]
[1750741537722,0.0448,105090.0,105080.0,0.62442563]
[1750741539180,0.0448,105090.0,105080.0,0.35749797]
[1750741539381,0.0448,105090.0,105080.0,0.59082563]
[1750741541190,0.0448,105090.0,105080.0,0.32389797]
[1750741541389,0.0448,105090.0,105080.0,0.59082563]
[1750741544275,0.0448,105090.0,105080.0,0.32389797]
[1750741544531,0.0448,105090.0,105080.0,0.59082563]
[1750741544729,0.0448,105090.0,105080.0,0.68082563]
[1750741545700,0.0448,105090.0,105080.0,0.41389797]
[1750741545911,0.0448,105090.0,105080.0,0.68082563]
[1750741547311,0.0448,105090.0,105080.0,0.59082563]
[1750741550567,0.0448,105090.0,105080.0,0.60782563]
[1750741552591,0.0448,105090.0,105080.0,0.59082563]
[1750741554198,0.0448,105090.0,105080.0,0.68082563]
[1750741554441,0.04472,105090.0,105080.0,0.68082563]
[1750741555076,0.04472,105090.0,105080.0,0.59082563]
[1750741557049,0.04472,105090.0,105080.0,0.58582563]
[1750741564166,0.04472,105090.0,105080.0,0.67582563]
[1750741564991,0.04472,105090.0,105080.0,0.70852563]
[1750741565195,0.04472,105090.0,105080.0,0.38986586]
[1750741565420,0.07782,105090.0,105080.0,0.66630944]
[1750741565747,0.06112,105090.0,105080.0,0.67582536]
[1750741565945,0.04472,105090.0,105080.0,0.39938187]
[1750741566251,0.07782,105090.0,105080.0,0.58582572]
[1750741566454,0.07782,105090.0,105080.0,0.59534173]
[1750741566607,0.07782,105090.0,105080.0,0.32841407]
[1750741567011,0.07782,105090.0,105080.0,0.32841398]
[1750741567228,0.04472,105090.0,105080.0,0.32841398]
[1750741567448,0.04472,105090.0,105080.0,0.59534164]
[1750741567986,0.04472,105090.0,105080.0,0.58582572]
[1750741568194,0.04472,105090.0,105080.0,0.59534173]
[1750741569085,0.04472,105090.0,105080.0,0.58582527]
[1750741570220,0.04472,105090.0,105080.0,0.59534119]
[1750741570421,0.04472,105090.0,105080.0,0.32841353]
[1750741570625,0.04472,105090.0,105080.0,0.59534119]
[1750741581546,0.04472,105090.0,105080.0,0.32841353]
[1750741581922,0.04472,105090.0,105080.0,0.59534119]
[1750741584125,0.04472,105090.0,105080.0,0.61184119]
[1750741585155,0.04472,105090.0,105080.0,0.59534119]
[1750741592816,0.04472,105090.0,105080.0,0.74970119]
[1750741594920,0.04472,105090.0,105080.0,0.48277353]
[1750741599762,0.04472,105090.0,105080.0,0.74970119]
[1750741608320,0.005,105090.0,105080.0,0.74970119]
[1750741608538,0.005,105090.0,105080.0,1.04892885]
[1750741608756,0.005,105090.0,105080.0,1.07753185]
[1750741610842,0.002,105090.0,105080.0,1.07753185]
[1750741611363,0.003,105090.0,105080.0,1.08153185]
[1750741612151,0.001,105090.0,105080.0,0.54767653]
[1750741612400,0.001,105090.0,105080.0,1.08253185]
[1750741614216,0.001,105090.0,105080.0,1.70400036]
[1750741614661,0.001,105090.0,105080.0,1.79400036]
[1750741615103,0.001,105090.0,105080.0,1.79300036]
[1750741615330,0.001,105090.0,105080.0,1.84300036]
[1750741615586,0.00056272,105120.0,105110.0,0.24981728]
[1750741615803,0.00056272,105120.0,105110.0,0.7665668]
[1750741616019,0.00056272,105120.0,105110.0,0.7952868]
[1750741616231,0.00056272,105120.0,105110.0,0.8238798]
[1750741617577,0.00356272,105120.0,105110.0,0.8238798]
[1750741618524,0.00056272,105120.0,105110.0,0.8238798]
[1750741619167,0.00156272,105120.0,105110.0,0.8238798]
[1750741620551,0.00156272,105120.0,105110.0,0.8248398]
[1750741621184,0.00156272,105120.0,105110.0,0.6705598]
[1750741621399,0.00156272,105120.0,105110.0,0.7938398]
[1750741622034,0.00156272,105120.0,105110.0,0.6395598]
[1750741622245,0.00156272,105120.0,105110.0,0.7938398]
[1750741622458,0.00156272,105120.0,105110.0,0.8095398]
[1750741622790,0.00156272,105120.0,105110.0,0.6552598]
[1750741622975,0.00156272,105120.0,105110.0,0.8095398]
[1750741625556,0.00156272,105120.0,105110.0,0.8094998]
[1750741626235,0.00156272,105120.0,105110.0,0.7937998]
[1750741630496,0.00156272,105120.0,105110.0,0.8239998]
[1750741636457,0.00156272,105120.0,105110.0,1.09092746]
[1750741639943,0.00156272,105120.0,105110.0,1.09113282]
[1750741640144,0.00156272,105120.0,105110.0,0.82420516]
[1750741641173,0.00156272,105120.0,105110.0,1.09113282]
[1750741642122,0.00156272,105120.0,105110.0,1.44567367]
[1750741643364,0.00156272,105120.0,105110.0,1.46473367]
[1750741643568,0.00156272,105120.0,105110.0,1.57742133]
[1750741643792,0.00156272,105120.0,105110.0,1.78162133]
[1750741643998,0.00156272,105120.0,105110.0,1.51469367]
[1750741644210,0.00156272,105120.0,105110.0,1.46369367]
[1750741644417,0.00156272,105120.0,105110.0,1.54866603]
[1750741644627,0.00156272,105120.0,105110.0,1.55266603]
[1750741644877,0.00056272,105120.0,105110.0,1.55266603]
[1750741646337,0.00056272,105120.0,105110.0,1.60266603]
[1750741646963,0.00156272,105120.0,105110.0,1.60866603]
[1750741647199,0.00100001,105120.0,105110.0,1.60866603]
[1750741648966,0.00100001,105120.0,105110.0,1.55866603]
[1750741649168,0.00100001,105120.0,105110.0,1.60866603]
[1750741649380,0.00100001,105120.0,105110.0,1.75866603]
[1750741652296,1e-08,105120.0,105110.0,1.75266603]
[1750741652529,1e-08,105120.0,105110.0,1.75666603]
[1750741652734,0.00100001,105120.0,105110.0,1.75666603]
[1750741652941,0.00100001,105120.0,105110.0,1.76066603]
[1750741654007,0.0009048,105120.0,105110.0,1.76066603]
[1750741657081,0.0001,105130.0,105120.0,1.29222499]
[1750741657256,0.00018801,105130.0,105120.0,1.58144685]
[1750741657872,0.00018801,105130.0,105120.0,1.58525785]
[1750741658072,0.00018801,105130.0,105120.0,1.39153785]
[1750741658284,0.00018801,105130.0,105120.0,1.53525785]
[1750741658694,0.00018801,105130.0,105120.0,1.26353785]
[1750741658899,0.03118801,105130.0,105120.0,0.77874316]
[1750741659196,0.03118801,105130.0,105120.0,1.248997]
[1750741659395,0.03118801,105130.0,105120.0,1.403157]
[1750741660262,0.01618801,105130.0,105120.0,1.403157]
[1750741660464,0.00018801,105130.0,105120.0,1.403157]
[1750741661569,0.00018801,105130.0,105120.0,1.406157]
[1750741661872,0.01538801,105130.0,105120.0,1.406157]
[1750741670149,0.00018801,105130.0,105120.0,1.406157]
[1750741670668,0.00018801,105130.0,105120.0,0.96758316]
[1750741670894,0.03208801,105130.0,105120.0,0.49732932]
[1750741671117,0.03208801,105130.0,105120.0,0.77793216]
[1750741671584,0.03208801,105130.0,105120.0,0.77493216]
[1750741672049,0.03208801,105130.0,105120.0,0.77593216]
[1750741674279,0.03208801,105130.0,105120.0,0.75687216]
[1750741674931,0.03208801,105130.0,105120.0,0.60271216]
[1750741675125,0.03208801,105130.0,105120.0,0.75587216]
[1750741675580,0.03208801,105130.0,105120.0,0.75287216]
[1750741678041,0.03208801,105130.0,105120.0,0.75387216]
[1750741678247,0.03208801,105130.0,105120.0,0.75287216]
[1750741678717,0.03308801,105130.0,105120.0,0.75287216]
[1750741680199,0.03308801,105130.0,105120.0,0.59871216]
[1750741680463,0.03308801,105130.0,105120.0,0.75287216]
[1750741681517,0.07264801,105130.0,105120.0,0.30478602]
[1750741681739,0.07264801,105130.0,105120.0,0.47797071]
[1750741688104,0.07264801,105130.0,105120.0,0.76238455]
[1750741688728,0.07264801,105130.0,105120.0,0.47797071]
[1750741689906,0.07264801,105130.0,105120.0,0.45894602]
[1750741690284,0.07264801,105130.0,105120.0,0.46845832]
[1750741694193,0.07264801,105130.0,105120.0,0.46845841]
[1750741694449,0.07264801,105130.0,105120.0,0.47797071]
[1750741706308,0.07264801,105130.0,105120.0,0.74474332]
[1750741709607,0.07264801,105130.0,105120.0,0.47797071]
[1750741709814,0.07264801,105130.0,105120.0,0.74474332]
[1750741714103,0.07264801,105130.0,105120.0,0.59058332]
[1750741714834,0.07264801,105130.0,105120.0,0.32381071]
[1750741715083,0.33942062,105130.0,105120.0,0.32381071]
[1750741718009,0.33942062,105130.0,105120.0,0.29527345]
[1750741718209,0.0327,105120.0,105110.0,0.19999587]
[1750741718445,0.29947261,105120.0,105110.0,0.3050113]
[1750741718882,0.29947261,105120.0,105110.0,0.29549773]
[1750741719169,0.29947261,105120.0,105110.0,0.3050113]
[1750741719597,0.29947261,105120.0,105110.0,0.31452478]
[1750741720231,0.29947261,105120.0,105110.0,0.32403817]
[1750741720450,0.0327,105120.0,105110.0,0.32403817]
[1750741720658,0.0327,105120.0,105110.0,0.33355137]
[1750741721341,0.0347,105120.0,105110.0,0.33355137]
[1750741722574,0.0367,105120.0,105110.0,0.33355137]
[1750741724781,0.0367,105120.0,105110.0,0.33355146]
[1750741725470,0.0367,105120.0,105110.0,0.333551]
[1750741726600,0.0367,105120.0,105110.0,0.3240378]
[1750741726808,0.0367,105120.0,105110.0,0.333551]
[1750741727425,0.0367,105120.0,105110.0,0.3240378]
[1750741727658,0.0367,105120.0,105110.0,0.333551]
[1750741728281,0.0367,105120.0,105110.0,0.3240378]
[1750741729448,0.0367,105120.0,105110.0,0.333551]
[1750741729655,0.0367,105120.0,105110.0,0.3240378]
[1750741730787,0.0367,105120.0,105110.0,0.333551]
[1750741731194,0.0367,105120.0,105110.0,0.3240378]
[1750741732054,0.66137268,105120.0,105110.0,0.09570722]
[1750741732711,0.66137268,105120.0,105110.0,0.10522106]
[1750741733494,0.81553268,105120.0,105110.0,0.10522106]
[1750741734260,0.81553268,105120.0,105110.0,0.09570722]
[1750741734476,0.81553268,105120.0,105110.0,0.10522106]
[1750741734890,0.81553268,105120.0,105110.0,0.09570722]
[1750741737243,0.85509268,105120.0,105110.0,0.09570722]
[1750741742340,1.10422056,105120.0,105110.0,0.09570722]
[1750741747601,0.83732028,105120.0,105110.0,0.09570722]
[1750741749736,0.83732028,105120.0,105110.0,0.10522106]
[1750741749969,0.83732028,105120.0,105110.0,0.09570722]
[1750741752756,1.10422056,105120.0,105110.0,0.09570722]
[1750741753194,0.83732028,105120.0,105110.0,0.09570722]
[1750741753403,0.57042,105120.0,105110.0,0.10522106]
[1750741753607,0.83732028,105120.0,105110.0,0.10522106]
[1750741753839,0.83732028,105120.0,105110.0,0.11473481]
[1750741754035,0.83732028,105120.0,105110.0,0.11473472]
[1750741754477,0.83732028,105120.0,105110.0,0.11473481]
[1750741755248,0.83732028,105120.0,105110.0,0.12424847]
[1750741755472,0.80462028,105120.0,105110.0,0.30501166]
[1750741755685,0.80462028,105120.0,105110.0,0.31452532]
[1750741756297,0.80462028,105120.0,105110.0,0.30501166]
[1750741756504,0.80462028,105120.0,105110.0,0.10522106]
[1750741756718,0.82102028,105120.0,105110.0,0.11473481]
[1750741757302,0.82102028,105120.0,105110.0,0.09570722]
[1750741757747,0.83622028,105120.0,105110.0,0.10522106]
[1750741759245,0.83622028,105120.0,105110.0,0.09570722]
[1750741759246,0.84514004,105120.0,105110.0,0.09570722]
[1750741759644,0.84514004,105120.0,105110.0,0.10522106]
[1750741760990,0.84514004,105120.0,105110.0,0.11473481]
[1750741761186,0.84506004,105120.0,105110.0,0.10522106]
[1750741761426,1.11196032,105120.0,105110.0,0.09570722]
[1750741761987,1.11196032,105120.0,105110.0,0.10522106]
[1750741764229,1.11196032,105120.0,105110.0,0.10522097]
[1750741764475,1.11196746,105120.0,105110.0,0.10522106]
[1750741764701,1.11196746,105120.0,105110.0,0.09570722]
[1750741768200,1.11196746,105120.0,105110.0,0.00020536]
[1750741768405,1.12982325,105120.0,105110.0,0.00020536]
[1750741768555,1.12982456,105120.0,105110.0,0.00020536]
[1750741769939,1.12982459,105120.0,105110.0,0.00020536]
[1750741774787,1.11196859,105120.0,105110.0,0.00020536]
[1750741776036,1.11196789,105120.0,105110.0,0.00020536]
[1750741778722,1.10304056,105120.0,105110.0,0.00020536]
[1750741778894,1.1119678,105120.0,105110.0,0.00020536]
[1750741781712,1.0967678,105120.0,105110.0,0.00020536]
[1750741782119,1.1126678,105120.0,105110.0,0.00020536]
[1750741784740,1.11266723,105120.0,105110.0,0.00020536]
[1750741785856,1.09676723,105120.0,105110.0,0.00020536]
[1750741786084,1.08036723,105120.0,105110.0,0.00020536]
[1750741786520,1.09686723,105120.0,105110.0,0.00020536]
[1750741786733,1.08036723,105120.0,105110.0,0.00020536]
[1750741787654,1.08036716,105120.0,105110.0,0.00020536]
[1750741788093,1.08036733,105120.0,105110.0,0.00020536]
[1750741788527,1.09566733,105120.0,105110.0,0.00020536]
[1750741790351,0.56186677,105120.0,105110.0,0.00020536]
[1750741790542,1.08036733,105120.0,105110.0,0.00020536]
[1750741791243,1.57246733,105120.0,105110.0,0.00020536]
[1750741791469,1.60476733,105120.0,105110.0,0.00020536]
[1750741799579,1.60476804,105120.0,105110.0,0.00020536]
[1750741800724,1.58856804,105120.0,105110.0,0.00020536]
[1750741800938,1.57246804,105120.0,105110.0,0.00020536]
[1750741801446,1.41834804,105120.0,105110.0,0.00020536]
[1750741801658,1.56350056,105120.0,105110.0,0.00020536]
[1750741801878,1.57242808,105120.0,105110.0,0.00020536]
[1750741803385,1.56350056,105120.0,105110.0,0.00020536]
[1750741803595,1.57242813,105120.0,105110.0,0.00020536]
[1750741805799,1.57242819,105120.0,105110.0,0.00020536]
[1750741808092,1.15144791,105120.0,105110.0,0.00020536]
[1750741808297,1.30548791,105120.0,105110.0,0.00020536]
[1750741808571,1.03854763,105120.0,105110.0,0.33741112]
[1750741808808,1.30544791,105120.0,105110.0,0.33741112]
[1750741809002,1.30544791,105120.0,105110.0,0.33741121]
[1750741809130,1.03854763,105120.0,105110.0,0.33741121]
[1750741809335,1.30544791,105120.0,105110.0,0.33741121]
[1750741809862,1.03854763,105120.0,105110.0,0.3469246]
[1750741810026,1.30544791,105120.0,105110.0,0.35643789]
[1750741810268,1.30544791,105120.0,105110.0,0.3469246]
[1750741810472,1.30544773,105120.0,105110.0,0.3469246]
[1750741812105,1.30544773,105120.0,105110.0,0.31139773]
[1750741812306,1.30544773,105120.0,105110.0,0.3050113]
[1750741812733,1.30544778,105120.0,105110.0,0.3216113]
[1750741813117,1.30544778,105120.0,105110.0,0.33112478]
[1750741813329,1.11192773,105120.0,105110.0,0.33112478]
[1750741813537,1.30544773,105120.0,105110.0,0.34612478]
[1750741814184,1.30544773,105120.0,105110.0,0.3366113]
[1750741814402,1.30544773,105120.0,105110.0,0.34612469]
[1750741814616,1.30544773,105120.0,105110.0,0.35563798]
[1750741814888,1.30544773,105120.0,105110.0,0.34612469]
[1750741815564,1.30544773,105120.0,105110.0,0.35563798]
[1750741816234,0.54450745,105120.0,105110.0,0.63205146]
[1750741816433,0.4961,105120.0,105110.0,0.65111146]
[1750741816623,0.53558,105120.0,105110.0,0.66064646]
[1750741818879,0.4961,105120.0,105110.0,0.66064646]
[1750741819802,0.004,105120.0,105110.0,1.49724759]
[1750741820015,0.004,105120.0,105110.0,1.51630759]
[1750741820247,0.004,105120.0,105110.0,1.49724759]
[1750741820453,0.004,105120.0,105110.0,1.34320759]
[1750741820935,0.004,105120.0,105110.0,1.49724759]
[1750741821066,0.002,105120.0,105110.0,1.49724759]
[1750741821520,0.002,105120.0,105110.0,1.52535261]
[1750741821963,0.00018801,105130.0,105120.0,0.25039646]
[1750741822086,0.00018801,105130.0,105120.0,1.21969888]
[1750741823462,0.00018801,105130.0,105120.0,1.22169888]
[1750741823669,0.00018801,105130.0,105120.0,1.28623973]
[1750741823876,0.00018801,105130.0,105120.0,1.23423973]
[1750741824298,0.00018801,105130.0,105120.0,1.28423973]
[1750741825354,0.00018801,105130.0,105120.0,1.55114001]
[1750741825557,0.00018801,105130.0,105120.0,1.55814001]
[1750741826281,0.00018801,105130.0,105120.0,1.32218791]
[1750741826700,0.00018801,105130.0,105120.0,1.32818791]
[1750741827132,0.00018801,105130.0,105120.0,1.32518791]
[1750741827355,0.00018801,105130.0,105120.0,1.32918791]
[1750741828715,0.00018801,105130.0,105120.0,1.27918791]
[1750741829277,0.00018801,105130.0,105120.0,0.71043917]
[1750741829479,0.00018801,105130.0,105120.0,1.27918791]
[1750741830869,0.00018801,105130.0,105120.0,1.36918791]
[1750741832549,0.00018801,105130.0,105120.0,1.37299891]
[1750741834916,0.00018801,105130.0,105120.0,1.52755891]
[1750741835322,0.00018801,105130.0,105120.0,1.54661891]
[1750741837818,0.00018801,105130.0,105120.0,1.54657891]
[1750741846369,0.00018801,105130.0,105120.0,1.77769527]
[1750741857668,0.00018801,105130.0,105120.0,1.82769527]
[1750741860212,0.00018801,105130.0,105120.0,1.02783017]
[1750741860423,0.00018801,105130.0,105120.0,1.56107357]
[1750741861524,0.00018801,105130.0,105120.0,1.82769527]
[1750741863397,0.00018801,105130.0,105120.0,1.02783017]
[1750741863552,0.00018801,105130.0,105120.0,1.56107357]
[1750741864116,0.00018801,105130.0,105120.0,1.56095357]
[1750741864753,0.00018801,105130.0,105120.0,1.02771017]
[1750741864955,0.00018801,105130.0,105120.0,1.56095357]
[1750741866350,0.00018801,105130.0,105120.0,1.82757527]
[1750741873591,0.00018801,105130.0,105120.0,1.56095357]
[1750741875105,0.00018801,105130.0,105120.0,1.82757527]
[1750741875313,0.00018801,105130.0,105120.0,1.56095357]
[1750741882750,0.00018801,105130.0,105120.0,1.82757527]
[1750741895873,0.00018801,105130.0,105120.0,1.87757527]
[1750741896070,0.00018801,105130.0,105120.0,2.01056453]
[1750741897333,0.00018801,105130.0,105120.0,1.80616453]
[1750741897551,0.00018801,105130.0,105120.0,1.71290283]
[1750741897755,0.00018801,105130.0,105120.0,1.55794283]
[1750741897964,0.03158801,105130.0,105120.0,1.71286283]
[1750741898207,0.03158801,105130.0,105120.0,1.57987357]
[1750741898706,0.00018801,105130.0,105120.0,1.57987357]
[1750741898935,0.00018801,105130.0,105120.0,1.42495357]
[1750741899161,0.00018801,105130.0,105120.0,1.57991357]
[1750741899390,0.00018801,105130.0,105120.0,1.58003357]
[1750741900241,0.00018801,105130.0,105120.0,1.84665527]
[1750741901410,0.00018801,105130.0,105120.0,1.87865527]
[1750741902315,0.00018801,105130.0,105120.0,1.82865527]
[1750741902628,0.00018801,105130.0,105120.0,1.87865527]
[1750741904598,0.00018801,105130.0,105120.0,1.91829527]
[1750741904799,0.00018801,105130.0,105120.0,1.61967357]
[1750741905235,0.00018801,105130.0,105120.0,1.88629527]
[1750741905443,0.00018801,105130.0,105120.0,1.56967357]
[1750741905862,0.00018801,105130.0,105120.0,1.61967357]
[1750741906702,0.00018801,105130.0,105120.0,1.88629527]
[1750741907352,0.00018801,105130.0,105120.0,1.83629527]
[1750741907564,0.00018801,105130.0,105120.0,1.88629527]
[1750741908193,0.00018801,105130.0,105120.0,1.91759527]
[1750741909124,0.00018801,105130.0,105120.0,2.01779527]
[1750741909331,0.00018801,105130.0,105120.0,1.91759527]
[1750741909822,0.0308,105150.0,105140.0,0.55875484]
[1750741909823,0.03033561,105150.0,105140.0,0.55875484]
[1750741910023,0.03033561,105150.0,105140.0,1.3425001]
[1750741910602,0.03033561,105150.0,105140.0,1.3710831]
[1750741911775,0.03033561,105150.0,105140.0,1.3730831]
[1750741912595,0.03033561,105150.0,105140.0,1.3740831]
[1750741913191,0.03033561,105150.0,105140.0,1.38348655]
[1750741914483,0.03033561,105150.0,105140.0,0.85024315]
[1750741914689,0.03033561,105150.0,105140.0,1.38348655]
[1750741917988,0.03033561,105150.0,105140.0,1.47348655]
[1750741921856,0.03033561,105150.0,105140.0,0.94024315]
[1750741922064,0.03033561,105150.0,105140.0,1.47348655]
[1750741922682,0.03033561,105150.0,105140.0,0.94024315]
[1750741922934,0.03033561,105150.0,105140.0,1.47348655]
[1750741932547,0.03033561,105150.0,105140.0,0.94024315]
[1750741932753,0.03033561,105150.0,105140.0,1.47348655]
[1750741935460,0.03033561,105150.0,105140.0,1.47296655]
[1750741943447,0.03033561,105150.0,105140.0,1.05134485]
[1750741943652,0.03033561,105150.0,105140.0,1.20598485]
[1750741943870,0.03033561,105150.0,105140.0,1.47250655]
[1750741949958,0.03033561,105150.0,105140.0,1.31786655]
[1750741950353,0.03033561,105150.0,105140.0,1.47270655]
[1750741950772,0.03033561,105150.0,105140.0,1.31786655]
[1750741951113,0.03033561,105150.0,105140.0,1.47270655]